[Event "45th FIDE Olympiad 2024"]
[Site "Budapest"]
[Date "2024.09.15"]
[Round "5.14"]
[White "Wojtaszek, Radoslaw"]
[Black "Nguyen, Ngoc Truong Son"]
[Result "0-1"]
[ECO "D41"]
[WhiteElo "2681"]
[BlackElo "2633"]
[Annotator "TA"]
[PlyCount "94"]
[EventDate "2024.09.05"]
[EventType "team-tourn"]
[EventCountry "HUN"]
[SourceTitle "playchess.com"]
[Source "ChessBase"]
[SourceQuality "1"]
[WhiteTeam "Poland"]
[BlackTeam "Vietnam"]
[WhiteTeamCountry "POL"]
[BlackTeamCountry "VIE"]
[TimeControl "40/5400+30:1800+30"]

{[%evp 28,94,9,8,20,20,66,38,51,0,0,0,0,-94,-102,-231,-216,-223,-223,-397,-390,-511,-131,-158,-144,-145,-143,-281,-281,-281,-229,-230,-238,-236,-231,-222,-235,-223,-220,-233,-237,-231,-230,-218,-227,-259,-248,-294,-292,-336,-339,-393,-422,-426,-415,-582,-592,-1494,-1386,-1079,-1071,-1564,-1386,-1423,-1408,-8797,-7899,-29943,-12758]} 1. d4 {[%emt 0:00:02]} Nf6 {[%emt 0:00:15]} 2. c4 {[%emt 0:00:04]} e6 {[%emt 0:00:25]} 3. Nf3 {[%emt 0:00:05]} d5 {[%emt 0:00:14]} 4. Nc3 {[%emt 0:00:06]} c5 {[%emt 0:01:28]} 5. cxd5 {[%emt 0:00:07]} Nxd5 {[%emt 0:00:45]} 6. e4 {[%emt 0:00:07]} Nxc3 {[%emt 0:00:08]} 7. bxc3 {[%emt 0:00:04]} cxd4 {[%emt 0:00:08]} 8. cxd4 {[%emt 0:00:04]} Bb4+ {[%emt 0:00:06]} 9. Bd2 {[%emt 0:00:04]} Bxd2+ {[%emt 0:00:25]} 10. Qxd2 {[%emt 0:00:06]} O-O {[%emt 0:00:11]} 11. Bc4 {[%emt 0:00:04]} Nd7 {[%emt 0:00:39]} 12. O-O {[%emt 0:00:10] D41: Queen's Gambit Declined: Semi-Tarrasch with 5 cxd5.} b6 {[%emt 0:00:21]} 13. d5 {[%emt 0:00:18]} Nf6 {[%emt 0:06:14]} 14. Qf4 {[%emt 0:00:18]} exd5 {[%emt 0:07:15]} 15. Rad1 {[%emt 0:00:07]} Qd7 $5 $146 {[%emt 0:25:14][%mdl 8] An interesting novelty.} ({Predecessor:} 15... Re8 16. e5 Qc7 17. Bb3 Ne4 18. Rxd5 Nc5 19. Bc4 Ne6 20. Qh4 Bb7 21. Rd6 Bxf3 22. gxf3 {½-½ Martirosyan,H (2688)-Naiditsch,A (2651) ESP-chT CECLUB Honor 2023 (3.2)}) 16. exd5 {[%emt 0:18:03]} Qg4 {[%emt 0:09:00]} (16... Bb7 $11) 17. Qc7 {[%emt 0:20:43]} Qh5 {[%emt 0:02:10]} 18. Ne5 {[%emt 0:03:08]} (18. Rde1 $14) 18... Bh3 $1 $11 {[%emt 0:05:08]} 19. Rfe1 {[%emt 0:20:28]} (19. gxh3 Rac8 20. Qxa7 Qxe5 $15) 19... Rac8 $1 {[%emt 0:04:24]} 20. Qxa7 {[%emt 0:12:40]} (20. Qe7 $1 $11 {remains equal.} Rfe8 21. d6 (21. Qd6 $2 Ne4 $19) 21... Rxe7 22. dxe7) 20... Bxg2 $1 $17 {[%emt 0:02:30]} 21. Kxg2 {[%emt 0:04:47]} (21. Rd4 $17 Be4 22. Rdxe4 (22. Rexe4 Nxe4 23. Rxe4 Rxc4 $15) 22... Nxe4 23. Rxe4 Rxc4 24. Rxc4 (24. Nxc4 $2 Qg6+ 25. Kf1 Qxe4 $19) 24... Qd1+ (24... Qxe5 25. Qd7 $11) 25. Kg2 Qxd5+ 26. Kg1 Qxe5 27. Qxb6) 21... Ng4 $1 $19 {[%emt 0:09:53]} 22. Nf3 {[%emt 0:00:27]} Rxc4 {[%emt 0:00:58]} 23. Qe7 $2 {[%emt 0:06:08]} (23. Qxb6 {might work better.} Rc2 24. Rd2 Rxd2 25. Nxd2 Qxh2+ (25... Qxd5+ 26. Ne4 $17) 26. Kf3 Ne5+ 27. Ke2 Qh5+ 28. f3 Qh2+ 29. Kf1 Qh3+ (29... Qxd2 30. Rxe5 Qc3 31. Qe3 $17) 30. Kg1 Qg3+ (30... Nxf3+ $2 31. Nxf3 Qg3+ 32. Kf1 $19) 31. Kf1 Qh3+ (31... Nxf3 $2 32. Nxf3 Qxf3+ 33. Kg1 $19) 32. Kg1 Nxf3+ 33. Nxf3 Qg3+ (33... Qxf3 34. Qc6 $17) 34. Kh1 Qxf3+ 35. Kg1 Qxd5 36. Qf2) 23... Nf6 $1 $19 {[%emt 0:01:27]} 24. Qe2 {[%emt 0:01:28]} Rf4 $2 {[%emt 0:04:16]} (24... Re4 $19 {is more deadly.} 25. Qd3 Rg4+ 26. Kh1 Rf4) 25. Ng1 {[%emt 0:03:43]} Qf5 {[%emt 0:03:19]} 26. d6 {[%emt 0:04:09]} Ne4 {[%emt 0:02:08]} 27. f3 {[%emt 0:00:05]} (27. Nh3 $17 Rg4+ 28. Kf1) 27... Nc3 $19 {[%emt 0:04:38]} 28. Qe7 {[%emt 0:00:12]} Nxd1 {[%emt 0:00:43]} 29. d7 {[%emt 0:00:34]} Qg6+ $1 {[%emt 0:00:33]} (29... Rd4 30. Qxf8+ Kxf8 31. Re8#) 30. Kf1 {[%emt 0:00:05] [#]} Qd3+ $1 {[%emt 0:00:20]} 31. Kg2 {[%emt 0:01:23] [#]} g6 $1 {[%emt 0:02:44]} ({Weaker is} 31... Rd4 32. Qxf8+ Kxf8 33. Re8#) 32. Qxf8+ {[%emt 0:01:22]} Kxf8 {[%emt 0:00:02]} 33. Re8+ {[%emt 0:00:07]} Kg7 {[%emt 0:00:02]} 34. d8=Q {[%emt 0:00:05]} Qxd8 {[%emt 0:00:40]} 35. Rxd8 {[%emt 0:00:02]} Nc3 {[%emt 0:00:19]} 36. Ra8 {[%emt 0:00:42]} b5 {[%emt 0:00:42]} 37. Kf2 {[%emt 0:05:13]} Rb4 {[%emt 0:00:23]} 38. Ke3 {[%emt 0:01:00]} Rb2 {[%emt 0:00:37]} 39. a3 {[%emt 0:00:01]} Rxh2 {[%emt 0:00:35]} 40. Kd3 {[%emt 0:00:14]} Rg2 {[%emt 0:00:36]} 41. Kxc3 {[%emt 0:31:49]} (41. Rc8 $142) 41... Rxg1 $19 {[%emt 0:30:05]} 42. Ra5 {[%emt 0:00:21]} Rf1 {[%emt 0:02:39]} 43. Rxb5 {[%emt 0:00:05]} Rxf3+ {[%emt 0:00:03]} 44. Kb4 {[%emt 0:00:00]} h5 {[%emt 0:00:00]} 45. a4 {[%emt 0:00:00]} h4 {[%emt 0:00:00]} 46. a5 {[%emt 0:00:00]} h3 {[%emt 0:00:00]} 47. Rc5 {[%emt 0:00:00]} Rf4+ {[%emt 0:00:00]} 0-1

[Event "45th FIDE Olympiad 2024"]
[Site "Budapest"]
[Date "2024.09.15"]
[Round "5.14"]
[White "Etienne, Angelo"]
[Black "Lesbros, Bernard"]
[Result "1-0"]
[ECO "A34"]
[WhiteElo "2122"]
[BlackElo "1938"]
[PlyCount "95"]
[EventDate "2024.09.05"]
[EventType "team-tourn"]
[EventCountry "HUN"]
[WhiteTeam "Haiti"]
[WhiteTeamCountry "HAI"]
[TimeControl "40/5400+30:1800+30"]

1. Nf3 c5 2. g3 g6 3. c4 Bg7 4. Nc3 e5 5. Bg2 Ne7 6. d3 O-O 7. h4 Nbc6 8. h5 d6 9. hxg6 hxg6 10. Bg5 Qa5 11. Qd2 Bg4 12. Bh6 Nf5 13. Bxg7 Kxg7 14. Nh2 Ncd4 15. Rb1 Bxe2 16. Nxe2 Qxa2 17. O-O Rh8 18. Nxd4 Nxd4 19. Nf3 Ne6 20. Qc3 Qa6 21. b4 b6 22. bxc5 bxc5 23. Nxe5 Nd4 24. Nc6 Qa3 25. Qb2 Qxb2 26. Rxb2 Nf5 27. Be4 Rac8 28. Nxa7 Rb8 29. Rxb8 Rxb8 30. Bxf5 gxf5 31. Nb5 d5 32. Kg2 dxc4 33. dxc4 Re8 34. Rd1 f4 35. Nd6 Re2 36. Kf3 Rc2 37. g4 Kf6 38. Rd5 Ke6 39. Ne4 Rxc4 40. Rxc5 Rd4 41. Kxf4 Ra4 42. Rc6+ Kd5 43. Rd6+ Kc4 44. Rf6 Kd3 45. f3 Ra7 46. Nd6 Ra6 47. g5 Ra4+ 48. Kg3 1-0

[Event "45th FIDE Olympiad 2024"]
[Site "Budapest"]
[Date "2024.09.15"]
[Round "5.15"]
[White "Le, Tuan Minh"]
[Black "Bartel, Mateusz"]
[Result "1-0"]
[ECO "E51"]
[WhiteElo "2564"]
[BlackElo "2618"]
[Annotator "TA"]
[PlyCount "75"]
[EventDate "2024.09.05"]
[EventType "team-tourn"]
[EventCountry "HUN"]
[SourceTitle "playchess.com"]
[Source "ChessBase"]
[SourceQuality "1"]
[WhiteTeam "Vietnam"]
[BlackTeam "Poland"]
[WhiteTeamCountry "VIE"]
[BlackTeamCountry "POL"]
[TimeControl "40/5400+30:1800+30"]

{[%evp 13,75,-10,0,-12,12,0,0,0,0,0,0,0,27,22,80,94,84,75,83,38,47,31,46,2,26,26,5,0,0,0,2,0,12,0,0,0,7,14,45,53,67,59,100,48,104,104,206,208,205,202,346,285,466,544,594,590,606,558,539,544,1914,1947,1472,1464]} 1. d4 {[%emt 0:00:09]} Nf6 {[%emt 0:00:07]} 2. c4 {[%emt 0:00:21]} e6 {[%emt 0:00:05]} 3. Nc3 {[%emt 0:00:03]} Bb4 {[%emt 0:00:07]} 4. e3 {[%emt 0:00:08]} d5 {[%emt 0:00:09]} 5. Nf3 {[%emt 0:06:11]} O-O {[%emt 0:00:10]} 6. Bd2 {[%emt 0:00:08]} b6 {[%emt 0:00:14]} 7. cxd5 {[%emt 0:00:26]} exd5 {[%emt 0:00:08]} 8. Bd3 {[%emt 0:00:15]} Re8 {[%emt 0:01:56]} 9. Ne5 {[%emt 0:03:15]} Bd6 {[%emt 0:18:08]} 10. f4 {[%emt 0:01:32] The position is equal.} Ba6 {[%emt 0:00:10]} 11. Bxa6 {[%emt 0:01:17]} Nxa6 {[%emt 0:00:04]} 12. O-O {[%emt 0:08:21]} c5 {[%emt 0:02:32]} 13. Be1 {[%emt 0:02:54]} cxd4 {[%emt 0:10:00]} (13... Be7 $11) 14. exd4 $16 {[%emt 0:01:15]} Nc7 {[%emt 0:00:03]} 15. Bh4 {[%emt 0:00:17]} Be7 {[%emt 0:00:17]} 16. Qb3 {[%emt 0:08:44] White is much more active.} Qd6 {[%emt 0:03:08]} 17. a3 {[%emt 0:16:20]} b5 {[%emt 0:21:00]} 18. Rf3 {[%emt 0:20:37][%cal Oa1c1]} Qb6 {[%emt 0:07:07]} 19. Kh1 {[%emt 0:02:16]} Rad8 {[%emt 0:06:15]} 20. Rd1 {[%emt 0:01:39]} Nd7 {[%emt 0:05:46]} 21. Bf2 {[%emt 0:04:18]} (21. Nxd5 $2 {loses.} Nxd5 22. Nxf7 Kxf7 $19) 21... Nf6 {[%emt 0:00:53]} 22. h3 {[%emt 0:01:31]} a6 {[%emt 0:05:15]} 23. f5 {[%emt 0:03:56]} Bd6 {[%emt 0:02:54]} 24. Re1 {[%emt 0:01:12]} Rb8 {[%emt 0:00:58]} 25. Qd1 {[%emt 0:01:40]} b4 {[%emt 0:04:02]} 26. axb4 {[%emt 0:00:11]} Bxb4 {[%emt 0:00:02]} 27. Bh4 {[%emt 0:00:30]} Rbc8 {[%emt 0:03:04] [#]} 28. Rfe3 {[%emt 0:02:28]} (28. Rg3 $1 $16) 28... Bxc3 {[%emt 0:04:04]} ({Better is} 28... Red8 $1 $14) 29. bxc3 {[%emt 0:00:12]} Qd6 {[%emt 0:00:06]} (29... a5 $16 {was necessary.}) 30. Bxf6 $18 {[%emt 0:02:14]} Qxf6 {[%emt 0:00:05] [#]} 31. Qh5 {[%emt 0:00:04]} h6 {[%emt 0:02:55]} (31... a5 $142 32. Ng4 Qd6) 32. h4 {[%emt 0:01:20]} Rcd8 $2 {[%emt 0:02:19]} (32... a5 33. Ng4 Qa6) 33. Ng4 {[%emt 0:02:04] White is clearly winning.} Qd6 {[%emt 0:00:01] [#]} 34. f6 $1 {[%emt 0:00:12][%cal Og4h6][%mdl 512] Intending Nxh6+! and mate.} Qf4 {[%emt 0:00:50]} (34... Rxe3 35. Rxe3) 35. fxg7 {[%emt 0:01:39]} Rxe3 {[%emt 0:00:20]} 36. Rxe3 {[%emt 0:00:53] White wants to mate with Rf3.} Rb8 {[%emt 0:00:02] ( -> ...Rb1+)} 37. Nxh6+ {[%emt 0:00:29]} Kxg7 {[%emt 0:00:01] [#]} 38. Rg3+ $3 {[%emt 0:00:23][%mdl 512] Weighted Error Value: White=0.12 (very precise) /Black=0.33.  Mistake:       	White=1     	Black=5      Inaccurate:     	White=2     	Black=4      OK:         	White=10    	Black=9      Best:        	White=3     	Black=1      Brilliant:      	White=1     	---} 1-0

[Event "45th FIDE Olympiad 2024"]
[Site "Budapest"]
[Date "2024.09.15"]
[Round "5.15"]
[White "Marochkina, Nadezhda Valerevna"]
[Black "Volcimus, Ritchy David"]
[Result "1-0"]
[ECO "E11"]
[WhiteElo "1792"]
[BlackElo "1948"]
[PlyCount "69"]
[EventDate "2024.09.05"]
[EventType "team-tourn"]
[EventCountry "HUN"]
[WhiteTeam "Senegal"]
[BlackTeam "Haiti"]
[WhiteTeamCountry "SEN"]
[BlackTeamCountry "HAI"]
[TimeControl "40/5400+30:1800+30"]

1. d4 Nf6 2. c4 e6 3. Nf3 Bb4+ 4. Bd2 Be7 5. g3 d5 6. Bg2 c6 7. e3 Nbd7 8. b3 O-O 9. O-O b6 10. Bc3 Ne4 11. Bb2 Ba6 12. Nbd2 f5 13. Qc1 Rc8 14. Re1 g5 15. Ba3 c5 16. Qb2 g4 17. Ne5 Nxd2 18. Nxd7 Nxc4 19. bxc4 Qxd7 20. cxd5 exd5 21. dxc5 Bxc5 22. Rad1 Bc4 23. Qc3 Bxa3 24. Qxa3 Rc5 25. Qb2 Qg7 26. Rd4 Bd3 27. Rd1 Be4 28. Qa3 Bxg2 29. Kxg2 Rd8 30. e4 fxe4 31. Rxe4 d4 32. Qb3+ Kh8 33. Rdxd4 Qxd4 34. Rxd4 Rxd4 35. Qf7 1-0

[Event "45th FIDE Olympiad 2024"]
[Site "Budapest"]
[Date "2024.09.15"]
[Round "5.16"]
[White "Gumularz, Szymon"]
[Black "Tran, Tuan Minh"]
[Result "1-0"]
[ECO "A20"]
[WhiteElo "2571"]
[BlackElo "2434"]
[Annotator "TA"]
[PlyCount "61"]
[EventDate "2024.09.05"]
[EventType "team-tourn"]
[EventCountry "HUN"]
[SourceTitle "playchess.com"]
[Source "ChessBase"]
[SourceQuality "1"]
[WhiteTeam "Poland"]
[BlackTeam "Vietnam"]
[WhiteTeamCountry "POL"]
[BlackTeamCountry "VIE"]
[TimeControl "40/5400+30:1800+30"]

{[%evp 9,61,17,25,14,25,12,37,28,29,16,115,106,129,114,233,252,247,231,252,254,258,254,318,326,280,333,287,311,393,410,314,260,241,268,250,256,270,268,282,287,272,277,312,322,306,297,322,326,315,310,835,802,1151,1135]} 1. c4 {[%emt 0:00:19]} e5 {[%emt 0:00:41]} 2. g3 {[%emt 0:00:22]} Nf6 {[%emt 0:02:26]} 3. Bg2 {[%emt 0:00:11]} c6 {[%emt 0:03:15]} 4. Nf3 {[%emt 0:00:10]} e4 {[%emt 0:13:31]} 5. Nd4 {[%emt 0:00:11][%cal Bf3d4,Bd4b3,Bb3d2][%mdl 32]} Qb6 {[%emt 0:00:36]} 6. Nb3 {[%emt 0:00:10]} a5 {[%emt 0:01:10][%cal Ba7a5,Ba5a4][%mdl 32] Threatens to win with ...a4.} 7. d3 {[%emt 0:00:08]} Bb4+ {[%emt 0:04:21]} 8. Nc3 {[%emt 0:05:52] White is slightly better.} a4 {[%emt 0:03:59]} 9. Be3 {[%emt 0:04:14]} c5 {[%emt 0:17:47]} (9... Qa6 $11 10. Nd2 exd3) 10. Nd2 $16 {[%emt 0:01:44]} a3 {[%emt 0:00:13]} 11. Rb1 {[%emt 0:10:23] And now bxa3 would win.} (11. dxe4 $2 axb2 12. Nb5 bxa1=B $19 (12... bxa1=R $2 13. Qxa1 O-O 14. a3 $19) (12... bxa1=N $2 13. e5 $19)) (11. Ncxe4 $6 Nxe4 12. Bxe4 axb2 $14) (11. Ndxe4 $2 axb2 12. O-O bxa1=R $19 (12... bxa1=Q $2 13. Qxa1 O-O 14. Nb5 $19) (12... bxa1=B $2 13. Nxf6+ Qxf6 14. Nd5 $19)) 11... exd3 {[%emt 0:08:02] [#]} (11... axb2 $16 {might work better.} 12. Rxb2 exd3) 12. bxa3 $1 $18 {[%emt 0:08:12]} (12. exd3 $6 O-O $16) 12... Rxa3 {[%emt 0:17:59]} 13. Nb5 {[%emt 0:00:20]} Qa5 {[%emt 0:04:01]} 14. Nxa3 {[%emt 0:02:57]} Qxa3 {[%emt 0:00:05]} 15. O-O {[%emt 0:00:22]} dxe2 {[%emt 0:02:44]} 16. Qxe2 {[%emt 0:00:05]} O-O {[%emt 0:00:03]} 17. Ne4 {[%emt 0:11:57]} Nxe4 {[%emt 0:01:45]} 18. Bxe4 {[%emt 0:00:03]} Nc6 {[%emt 0:00:26][%cal Bb8c6,Bc6e5,Be5f3][%mdl 32]} 19. Rb3 {[%emt 0:00:25]} Qa4 {[%emt 0:00:39]} 20. Qc2 {[%emt 0:07:28]} h6 {[%emt 0:03:02] [#]} 21. a3 $1 {[%emt 0:04:28][%mdl 512]} Ba5 {[%emt 0:07:09]} 22. Bxc5 {[%emt 0:01:01]} d6 {[%emt 0:00:04]} 23. Be3 {[%emt 0:11:04]} (23. Bxd6 Nd4 24. Qd3 Nxb3 $14) 23... Ne5 {[%emt 0:00:42]} 24. Rc1 {[%emt 0:11:51]} (24. Bxb7 $2 {perishes.} Bxb7 (24... Nxc4 25. Bxc8 Rxc8 26. Rfb1 $16) 25. Rd1 Nf3+ (25... Nxc4 $2 26. Rd4 $19) 26. Kf1 Nxh2+ 27. Kg1 Nf3+ 28. Kf1 Ba6 $19) 24... Be6 {[%emt 0:03:36]} 25. Rxb7 {[%emt 0:00:14]} ({But not} 25. Bxb7 $6 Bxc4 26. Rb2 Qxa3 $16) 25... Qxa3 {[%emt 0:00:03]} 26. Bd5 {[%emt 0:04:23]} Bxd5 {[%emt 0:04:06]} 27. cxd5 {[%emt 0:00:03]} Nf3+ {[%emt 0:01:03]} 28. Kh1 {[%emt 0:00:12]} Bd8 {[%emt 0:00:30]} 29. Kg2 {[%emt 0:03:24]} Qa8 $2 {[%emt 0:00:31]} (29... Ne5 30. Qb3 Qxb3 31. Rxb3 Bf6) 30. Qb3 {[%emt 0:03:05]} Ne5 {[%emt 0:00:25]} 31. Ra7 {[%emt 0:00:09] Black got outplayed after the opening.   Weighted Error Value: White=0.03 (flawless) /Black=0.24 (precise) .  Mistake:       	---       	Black=3      Inaccurate:     	---       	Black=1      OK:         	White=13    	Black=7      Best:        	White=4     	Black=3      Strong:       	White=1     	---} 1-0

[Event "45th FIDE Olympiad 2024"]
[Site "Budapest"]
[Date "2024.09.15"]
[Round "5.16"]
[White "Guillaume, Jude Mirvens"]
[Black "Cisse, Amadou Lamine"]
[Result "1/2-1/2"]
[ECO "D02"]
[WhiteElo "1956"]
[BlackElo "1948"]
[PlyCount "145"]
[EventDate "2024.09.05"]
[EventType "team-tourn"]
[EventCountry "HUN"]
[WhiteTeam "Haiti"]
[WhiteTeamCountry "HAI"]
[TimeControl "40/5400+30:1800+30"]

1. d4 d5 2. Bf4 c5 3. c3 Nc6 4. Nf3 Nf6 5. h3 e6 6. e3 Qb6 7. Qc2 Bd7 8. Nbd2 Rc8 9. Qb3 Qxb3 10. axb3 a6 11. Be2 cxd4 12. exd4 Be7 13. Ne5 Nxe5 14. dxe5 Ng8 15. b4 Bc6 16. O-O h5 17. Nb3 Bd8 18. Be3 Ne7 19. Bd3 Nf5 20. Bc5 Bc7 21. Bxf5 exf5 22. f4 Bd7 23. Rae1 b6 24. Bd6 Bxd6 25. exd6+ Be6 26. Nd4 Kd7 27. Ra1 Ra8 28. Ra3 Ra7 29. Re1 Rha8 30. Rea1 Kc8 31. Nc6 Rd7 32. Ne5 Rxd6 33. Rxa6 Rxa6 34. Rxa6 Kb7 35. Ra1 Rd8 36. Kf2 Rc8 37. Ke3 d4+ 38. Kxd4 f6 39. Nf3 Rc4+ 40. Ke3 Re4+ 41. Kf2 Rxf4 42. Re1 Re4 43. Nd4 Bd5 44. g3 f4 45. Rxe4 fxg3+ 46. Kxg3 Bxe4 47. Kf4 Bd3 48. h4 g6 49. Ke3 Bb1 50. Ne6 Kc6 51. c4 Kd6 52. Nf4 Ke5 53. c5 bxc5 54. bxc5 g5 55. hxg5 fxg5 56. Nxh5 Kd5 57. b4 Bf5 58. Ng3 Bd7 59. Ne4 Kc4 60. Nxg5 Kxb4 61. Kd4 Bc6 62. Ne6 Bg2 63. Nf4 Bc6 64. Nd3+ Kb5 65. Ke5 Bb7 66. Kd6 Be4 67. Nf4 Bb7 68. Nd5 Kc4 69. Nc7 Be4 70. Ne6 Kb5 71. Nf4 Kc4 72. Nh5 Bb7 73. Nf6 1/2-1/2

[Event "45th FIDE Olympiad 2024"]
[Site "Budapest"]
[Date "2024.09.15"]
[Round "5.17"]
[White "Yilmaz, Mustafa"]
[Black "Carlsen, Magnus"]
[Result "1/2-1/2"]
[ECO "D52"]
[WhiteElo "2587"]
[BlackElo "2832"]
[Annotator "TA"]
[PlyCount "107"]
[EventDate "2024.09.05"]
[EventType "team-tourn"]
[EventCountry "HUN"]
[SourceTitle "playchess.com"]
[Source "ChessBase"]
[SourceQuality "1"]
[WhiteTeam "Turkiye"]
[BlackTeam "Norway"]
[BlackTeamCountry "NOR"]
[TimeControl "40/5400+30:1800+30"]

{[%evp 21,107,8,7,0,15,11,8,5,24,11,10,7,43,-17,0,6,28,0,0,0,0,0,14,0,63,60,57,60,124,104,110,83,106,83,142,115,142,104,111,52,46,43,41,41,41,16,25,25,25,25,25,25,25,25,25,25,27,27,27,27,27,0,27,0,27,27,12,20,27,0,0,0,0,0,0,0,0,0,0,0,0,0,0,0,0,0,0,0]} 1. d4 {[%emt 0:00:03]} Nf6 {[%emt 0:04:55]} 2. c4 {[%emt 0:00:04]} e6 {[%emt 0:00:05]} 3. Nf3 {[%emt 0:00:04]} d5 {[%emt 0:00:18]} 4. Nc3 {[%emt 0:00:06]} Nbd7 {[%emt 0:00:15]} 5. cxd5 {[%emt 0:00:33]} exd5 {[%emt 0:03:46]} 6. Bg5 {[%emt 0:00:15]} c6 {[%emt 0:03:23]} 7. e3 {[%emt 0:01:38]} Qa5 {[%emt 0:02:02]} 8. Bd3 {[%emt 0:11:47]} Ne4 {[%emt 0:00:43]} 9. Qc2 {[%emt 0:00:39]} Nxg5 {[%emt 0:00:56]} 10. Nxg5 {[%emt 0:00:05]} h6 {[%emt 0:04:22]} 11. Nf3 {[%emt 0:02:56]} Bd6 {[%emt 0:00:38]} 12. O-O {[%emt 0:07:08]} Nf6 {[%emt 0:00:23]} 13. Rae1 {[%emt 0:10:34]} O-O {[%emt 0:07:42]} 14. Ne5 {[%emt 0:04:46]} a6 {[%emt 0:20:29]} 15. f4 {[%emt 0:05:23]} c5 {[%emt 0:01:47]} 16. Qf2 {[%emt 0:16:27]} b5 {[%emt 0:03:53]} 17. Bb1 {[%emt 0:02:57]} ({White should play} 17. e4 $14) 17... Bb7 {[%emt 0:06:04]} 18. g4 {[%emt 0:04:21] [#] And now g5 would win.} Qc7 {[%emt 0:08:06]} 19. h4 {[%emt 0:11:44]} Ne4 {[%emt 0:03:26]} 20. Nxe4 {[%emt 0:02:38]} dxe4 {[%emt 0:00:02]} 21. g5 {[%emt 0:02:12]} f6 {[%emt 0:02:19]} 22. gxf6 {[%emt 0:02:22]} gxf6 {[%emt 0:08:00]} ({Better is} 22... Rxf6 $11 23. Qg2 cxd4) 23. Qg2+ $14 {[%emt 0:00:30]} Qg7 {[%emt 0:02:01]} 24. dxc5 {[%emt 0:04:32]} Bxe5 {[%emt 0:04:25]} (24... fxe5 $14 25. cxd6 exf4) 25. fxe5 $16 {[%emt 0:01:19]} fxe5 {[%emt 0:00:02]} 26. Rxf8+ {[%emt 0:02:05]} Rxf8 {[%emt 0:00:07]} 27. Rd1 {[%emt 0:00:56] Strongly threatening Rd6.} b4 {[%emt 0:05:32]} (27... Rf3 $142 28. Rd7 Rg3 (28... Qxg2+ $2 29. Kxg2 Rf7 30. Rd6 $18) 29. Rxg7+ Rxg7) 28. Rd6 {[%emt 0:03:16][%cal Od6g6] [#] Rg6! would now be deadly.} Qxg2+ {[%emt 0:00:07]} 29. Kxg2 {[%emt 0:00:01][%cal Oc5c6][%mdl 4096] Endgame. Black must now prevent c6! KRB-KRB} Rc8 {[%emt 0:01:00][%cal Bf8c8,Bc8c5,Bc5b5,Bb5b2,Bb2b4][%mdl 32]} 30. Rb6 {[%emt 0:01:55] White is more active.} (30. Rxh6 Rxc5 31. Rb6 Bd5 $14) (30. h5 $16) 30... Bd5 $14 {[%emt 0:00:36]} 31. Rxb4 {[%emt 0:00:34][%cal Bb6b4,Bb4a4,Ba4a6,Ba6h6,Bh6h7][%mdl 32]} Rxc5 {[%emt 0:00:39]} 32. Bxe4 {[%emt 0:00:42]} Bxa2 {[%emt 0:01:38]} 33. Ra4 {[%emt 0:00:36]} Bf7 {[%emt 0:00:57]} 34. Rxa6 {[%emt 0:01:13][%cal Og2f3]} Rb5 {[%emt 0:02:13]} 35. Rxh6 {[%emt 0:00:45]} Rxb2+ {[%emt 0:00:23]} 36. Kf3 {[%emt 0:00:43]} Rb4 {[%emt 0:01:51]} 37. Bf5 {[%emt 0:00:36]} Kg7 {[%emt 0:00:53]} 38. Rh7+ {[%emt 0:00:11]} Kf6 {[%emt 0:00:09]} 39. e4 {[%emt 0:00:18]} Rb1 {[%emt 0:00:36]} 40. Rh6+ {[%emt 0:00:22]} Kg7 {[%emt 0:00:11]} 41. Rh7+ {[%emt 0:30:35]} Kg8 {[%emt 0:30:57]} 42. Rh6 {[%emt 0:00:00]} Kg7 {[%emt 0:00:00]} 43. Rd6 {[%emt 0:00:00]} Bh5+ {[%emt 0:00:00]} 44. Kg3 {[%emt 0:00:00]} Rb3+ {[%emt 0:00:00]} 45. Kf2 {[%emt 0:00:00]} Rf3+ {[%emt 0:00:00] The position is equal.} 46. Kg2 {[%emt 0:00:00] aiming for Rd7+.} Rf4 {[%emt 0:00:00]} 47. Kg3 {[%emt 0:00:00]} Rf3+ {[%emt 0:00:00]} 48. Kh2 {[%emt 0:00:00]} Rf2+ {[%emt 0:00:00]} 49. Kg1 {[%emt 0:00:00]} Rf4 {[%emt 0:00:00]} 50. Rd7+ {[%emt 0:00:00]} Kf6 {[%emt 0:00:00]} 51. Rd6+ {[%emt 0:00:00]} Kf7 {[%emt 0:00:00]} 52. Rd7+ {[%emt 0:00:00]} Kf6 {[%emt 0:00:00]} 53. Rd6+ {[%emt 0:00:00]} Kf7 {[%emt 0:00:00]} 54. Rd7+ {[%emt 0:00:00] Weighted Error Value: White=0.10 (very precise) /Black=0.12 (very precise) .  Mistake:       	White=2     	Black=3      Inaccurate:     	White=3     	Black=2      OK:         	White=16    	Black=20     Best:        	---       	Black=3} 1/2-1/2

[Event "45th FIDE Olympiad 2024"]
[Site "Budapest"]
[Date "2024.09.15"]
[Round "5.17"]
[White "Blackman, Justin"]
[Black "Gontcharov, Serguei"]
[Result "1-0"]
[ECO "D00"]
[WhiteElo "2265"]
[BlackElo "1927"]
[PlyCount "51"]
[EventDate "2024.09.05"]
[EventType "team-tourn"]
[EventCountry "HUN"]
[WhiteTeam "Barbados"]
[BlackTeam "Bermuda"]
[WhiteTeamCountry "BAR"]
[BlackTeamCountry "BER"]
[TimeControl "40/5400+30:1800+30"]

1. d4 d5 2. Bf4 Nf6 3. e3 c5 4. c3 Nc6 5. Bd3 Qb6 6. b3 Bg4 7. Nf3 Nh5 8. Bg5 h6 9. Bh4 g5 10. h3 Bd7 11. Ne5 Nxe5 12. dxe5 Ng7 13. Bg3 d4 14. O-O Ne6 15. Na3 Bg7 16. f4 gxf4 17. exf4 dxc3 18. f5 Nd4 19. e6 Nxe6 20. fxe6 Bxe6 21. Bb5+ Kf8 22. Qe2 Rd8 23. Nc4 Qxb5 24. Qxe6 Bf6 25. Rxf6 exf6 26. Qxf6 1-0